bitfinex/quotes_ETHUSD_20260207
["timestamp","ask_amount","ask_price","bid_price","bid_amount"]
[1770427851802,0.44396617,2047.1,2046.6,4.64211096]
[1770427852008,0.44396617,2047.0,2046.7,0.58646641]
[1770427852215,0.44396617,2046.9,2046.7,0.58646641]
[1770427852507,0.44396617,2046.8,2046.7,0.58646641]
[1770427853092,1.49782019,2046.8,2046.7,0.58646641]
[1770427853730,0.002,2047.2,2046.8,4.05176477]
[1770427854019,0.002,2047.2,2046.9,4.63773574]
[1770427855210,0.002,2047.2,2047.0,5.27306423]
[1770427856092,0.002,2047.2,2046.9,1.80732786]
[1770427856696,0.002,2047.2,2046.9,5.85909263]
[1770427857216,0.002,2047.2,2047.0,4.05176477]
[1770427857419,0.002,2047.2,2047.1,0.58590926]
[1770427860933,0.002,2047.4,2047.1,5.85891383]
[1770427861126,0.002,2047.4,2047.1,0.58590926]
[1770427861329,4.11578662,2047.4,2046.5,1.22259675]
[1770427861622,4.11578662,2047.4,2046.6,0.001]
[1770427861827,4.11578662,2047.4,2046.5,1.22259675]
[1770427862039,4.11578662,2047.4,2046.6,0.001]
[1770427862200,0.002,2047.4,2046.8,1.22138251]
[1770427862396,0.002,2047.4,2046.9,0.61072417]
[1770427863899,4.11578662,2047.4,2046.5,1.22259705]
[1770427864121,4.11578662,2047.4,2046.5,0.001]
[1770427864710,1.2211205,2047.3,2046.5,0.001]
[1770427864931,4.11378662,2047.2,2046.6,0.001]
[1770427865434,4.11378662,2047.2,2046.5,0.001]
[1770427865729,4.13268771,2047.0,2046.5,0.001]
[1770427865935,0.42741216,2046.9,2046.5,0.002]
[1770427866224,4.13268771,2047.0,2046.5,0.002]
[1770427866225,0.42741216,2046.8,2046.5,0.002]
[1770427866429,0.42741216,2046.7,2046.5,0.002]
[1770427866732,0.42741216,2046.6,2046.5,0.002]
[1770427870422,1.22118014,2047.2,2046.5,0.001]
[1770427870734,1.22118014,2047.2,2046.6,0.001]
[1770427871231,1.22118014,2047.2,2046.7,0.001]
[1770427871405,0.002,2047.0,2046.7,0.001]
[1770427872701,0.002,2047.0,2046.8,0.001]
[1770427872904,0.002,2047.0,2046.7,0.001]
[1770427874435,0.002,2047.4,2046.9,4.28366321]
[1770427874614,0.002,2047.4,2047.0,1.34068452]
[1770427875021,1.22307486,2047.4,2047.0,1.34068452]
[1770427875216,1.22307486,2047.4,2046.7,0.001]
[1770427875530,1.22307486,2047.4,2046.7,4.28466321]
[1770427877320,1.22307486,2047.4,2046.8,1.2214188]
[1770427878038,0.002,2047.4,2046.8,1.2214188]
[1770427878417,0.002,2047.4,2046.8,5.50508201]
[1770427878622,0.002,2047.4,2046.9,1.03918861]
[1770427879528,0.002,2047.4,2046.9,2.26053748]
[1770427879736,0.002,2047.4,2046.9,1.03918861]
[1770427879919,0.002,2047.4,2046.9,2.26052427]
[1770427880119,0.002,2047.4,2046.9,6.54418748]
[1770427880315,0.002,2047.4,2047.0,1.14298551]
[1770427880634,0.002,2047.4,2046.9,5.50501938]
[1770427881517,0.002,2047.4,2047.0,4.28366321]
[1770427883441,0.002,2047.2,2047.0,4.28366321]
[1770427883620,0.002,2047.2,2047.1,1.2212398]
[1770427885047,0.002,2047.2,2047.1,5.50490301]
[1770427885382,0.002,2047.4,2047.1,2.74878888]
[1770427885553,0.002,2047.4,2046.8,4.92647021]
[1770427885554,1.2211205,2047.3,2046.7,0.001]
[1770427885844,1.05211624,2047.2,2046.7,0.001]
[1770427886043,1.05211624,2047.1,2046.7,0.001]
[1770427886214,1.05211624,2047.0,2046.7,0.001]
[1770427886418,5.18273164,2047.4,2046.7,0.001]
[1770427886615,3.95966757,2047.2,2046.7,0.001]
[1770427886816,1.05212099,2047.1,2046.7,0.001]
[1770427887115,3.95966757,2047.2,2046.7,0.001]
[1770427887116,1.05212099,2047.0,2046.7,0.001]
[1770427887321,1.05212099,2046.9,2046.7,0.001]
[1770427887520,2.27353979,2046.8,2046.7,0.001]
[1770427888030,2.27353979,2046.8,2046.5,0.001]
[1770427888347,1.05212099,2046.7,2046.5,0.001]
[1770427888535,1.05212099,2046.6,2046.5,0.001]
[1770427889248,1.05212099,2046.6,2046.1,0.001]
[1770427889423,1.22118014,2047.2,2046.2,4.28366321]
[1770427889620,1.22129946,2047.0,2046.2,5.5054115]
[1770427889817,1.05213005,2046.9,2046.2,5.5054115]
[1770427890115,1.05213005,2046.8,2046.2,4.28366321]
[1770427890333,1.22129946,2047.0,2046.2,5.5054379]
[1770427890334,1.05213005,2046.7,2046.2,5.5054379]
[1770427890540,1.05213005,2046.6,2046.3,0.65459738]
[1770427890741,5.18096703,2047.0,2046.1,1.04053592]
[1770427890953,1.0521523,2046.9,2046.1,1.04053592]
[1770427891147,1.0521523,2046.8,2046.1,1.04053592]
[1770427891448,1.0521523,2046.7,2046.1,1.04053592]
[1770427891676,5.18096703,2047.0,2046.1,1.04053592]
[1770427891677,1.0521523,2046.6,2046.1,6.54603443]
[1770427891850,1.22133031,2047.0,2046.3,4.28366321]
[1770427892042,1.05207924,2046.9,2046.3,4.28366321]
[1770427892245,1.05207924,2046.8,2046.3,4.28366321]
[1770427892569,1.05207924,2046.7,2046.3,4.28366321]
[1770427892768,1.22133031,2047.0,2046.4,0.54270236]
[1770427893063,1.05202205,2046.9,2046.4,0.54270236]
[1770427893258,1.05202205,2046.8,2046.4,0.54270236]
[1770427893454,1.05202205,2046.7,2046.4,0.54270236]
[1770427893660,1.22133031,2047.0,2046.4,0.54270236]
[1770427893843,1.05197634,2046.9,2046.4,0.54270236]
[1770427894045,1.05197634,2046.8,2046.4,0.54270236]
[1770427894369,1.05197634,2046.7,2046.4,0.54270236]
[1770427894571,1.05193675,2046.6,2046.1,0.001]
[1770427894769,3.95966757,2046.7,2046.1,0.001]
[1770427894969,1.05194502,2046.6,2046.1,0.001]
[1770427895267,2.71642036,2047.0,2045.9,5.50656136]
[1770427895268,3.95966757,2046.4,2045.9,0.001]
[1770427895470,3.95966757,2046.2,2045.9,0.001]
[1770427895658,1.05194502,2046.1,2046.0,0.001]
[1770427895846,2.27378168,2046.1,2045.6,0.001]
[1770427896049,1.05194502,2046.0,2045.6,0.001]
[1770427896251,1.05194502,2045.9,2045.6,0.001]
[1770427896577,1.22183666,2046.1,2045.6,0.001]
[1770427896779,1.0512923,2046.0,2045.6,0.001]
[1770427896980,1.0512923,2046.0,2045.4,0.001]
[1770427896981,3.96844958,2045.8,2045.4,0.001]
[1770427897279,1.0512923,2045.7,2045.2,0.001]
[1770427897574,3.96844958,2045.8,2045.2,0.001]
[1770427897575,1.0512923,2045.6,2045.2,0.001]
[1770427897773,3.96844958,2045.8,2045.2,0.001]
[1770427897774,1.0512923,2045.5,2045.2,0.001]
[1770427898075,1.05043596,2045.4,2045.2,0.001]
[1770427898274,0.50188855,2045.4,2045.2,0.001]
[1770427898773,4.47033813,2045.4,2044.8,0.001]
[1770427898944,1.0492967,2045.3,2044.8,0.001]
[1770427899147,4.47033813,2045.4,2044.8,0.001]
[1770427899576,4.45081213,2045.4,2044.8,0.001]
[1770427900077,1.22231457,2045.3,2044.8,0.001]
[1770427900253,2.21551607,2045.3,2044.8,0.001]
[1770427900454,0.9932015,2045.3,2044.8,0.001]
[1770427900660,3.96844958,2045.9,2044.9,4.25616723]
[1770427900857,1.22189638,2046.0,2045.0,4.25716723]
[1770427901047,1.04662158,2045.9,2045.0,4.25716723]
[1770427901248,1.22189638,2046.0,2045.0,4.25716723]
[1770427901481,2.81920951,2046.0,2045.1,4.68188395]
[1770427902178,2.81920951,2046.0,2045.2,5.47854156]
[1770427903577,2.81920951,2046.0,2045.1,1.64811542]
[1770427903773,2.81920951,2046.0,2045.1,5.90428265]
[1770427904589,3.96844958,2046.6,2045.2,4.25616723]
[1770427904889,3.96844958,2046.6,2045.5,0.041511]
[1770427905183,3.96844958,2046.6,2045.5,4.29767823]
[1770427906551,1.22159784,2046.5,2045.6,1.22213531]
[1770427906768,1.22159784,2046.5,2045.6,5.47830254]
[1770427906964,4.88591391,2047.1,2045.7,1.04083548]
[1770427907164,1.0450128,2047.0,2045.7,5.29700271]
[1770427907513,3.96844958,2046.8,2045.7,5.29700271]
[1770427907713,1.0450128,2046.7,2045.7,5.29700271]
[1770427907998,0.002,2046.3,2045.8,0.6520138]
[1770427908570,0.002,2046.3,2045.9,1.2219561]
[1770427908766,0.002,2046.5,2046.0,4.25616723]
[1770427909398,0.002,2046.5,2045.9,1.2219561]
[1770427909399,0.002,2046.5,2046.2,4.25616723]
[1770427909603,1.22318717,2047.2,2046.2,4.25616723]
[1770427909780,1.22318717,2047.2,2046.3,4.68593505]
[1770427910165,1.22319626,2047.2,2046.3,4.68593505]
[1770427910444,0.002,2047.2,2046.3,4.68593505]
[1770427910701,0.002,2047.2,2046.5,4.25616723]
[1770427911803,0.002,2047.2,2046.8,4.25616723]
[1770427911997,0.002,2047.2,2046.9,0.42976782]
[1770427912307,5.01420515,2047.1,2046.3,1.65144242]
[1770427912475,1.04573219,2047.0,2046.2,1.22173357]
[1770427912679,1.22129946,2047.0,2046.0,5.47806361]
[1770427913194,1.22129946,2047.0,2045.9,1.22191579]
[1770427913195,3.96844958,2046.8,2045.9,1.22191579]
[1770427913393,0.50145971,2046.7,2045.9,2.32372813]
[1770427914814,1.22153816,2046.6,2045.9,2.32372813]
[1770427915011,5.01530894,2046.5,2045.8,0.6520138]
[1770427915209,3.96844958,2046.5,2045.7,1.22207419]
[1770427917194,1.22165754,2046.4,2045.6,0.001]
[1770427919907,1.22153816,2046.6,2045.6,4.25716723]
[1770427920215,0.50145971,2046.7,2045.8,4.25716723]
[1770427920521,1.22333704,2047.0,2046.0,4.25616723]
[1770427920818,1.0478194,2046.9,2046.0,4.25616723]
[1770427921123,0.002,2047.0,2046.2,4.25616723]
[1770427922103,0.002,2047.0,2046.3,5.47788447]
[1770427922490,0.002,2047.0,2046.4,4.29767823]
[1770427922687,0.002,2047.2,2046.6,4.25616723]
[1770427924026,0.002,2047.2,2046.2,10.02586898]
[1770427924027,1.2212398,2047.1,2046.0,5.47806361]
[1770427924729,1.2212398,2047.1,2046.1,4.25616723]
[1770427926729,1.2212398,2047.1,2046.2,1.22177695]
[1770427927220,1.04675775,2047.0,2046.2,1.22177695]
[1770427927421,1.66561347,2046.9,2046.2,2.25828215]
[1770427927623,4.53941534,2046.9,2046.1,1.22183127]
[1770427927941,1.04710361,2046.8,2046.1,1.22183127]
[1770427928124,5.21243654,2047.1,2046.1,1.22183127]
[1770427928425,1.04755956,2047.0,2046.1,1.22183127]
[1770427928636,1.04755956,2046.9,2046.1,1.22183645]
[1770427928802,1.04755956,2046.8,2046.1,1.8753641]
[1770427930746,5.0387563,2046.7,2045.8,1.22301535]
[1770427931036,3.99119674,2046.5,2045.8,0.001]
[1770427931336,1.04755956,2046.4,2045.8,0.001]
[1770427931545,1.22153816,2046.6,2045.8,0.001]
[1770427931727,1.66076559,2046.5,2045.8,0.001]
[1770427931930,1.04999651,2046.4,2045.8,0.001]
[1770427932114,0.61076908,2046.5,2045.8,0.001]
[1770427932440,1.05051673,2046.4,2046.3,0.001]
[1770427942245,1.05051673,2046.4,2046.1,3.85]
[1770427942452,1.05051673,2046.3,2046.1,3.85]
[1770427942651,8.8773819,2046.6,2046.1,3.85]
[1770427942955,2.06278684,2046.5,2046.1,3.85]
[1770427943253,1.05289483,2046.4,2046.1,3.85]
[1770427943431,1.05289483,2046.3,2046.1,3.85]
[1770427943636,1.05289483,2046.2,2046.1,3.85]
[1770427945231,2.27467178,2046.2,2046.0,3.851]
[1770427945420,2.1681686,2046.1,2046.0,3.60798806]
[1770427945623,2.1681686,2046.1,2045.8,0.001]
[1770427945845,1.05289483,2046.0,2045.8,0.001]
[1770427946047,1.11527377,2046.1,2045.8,0.001]
[1770427946048,1.05289483,2045.9,2045.8,0.001]
[1770427947050,2.27485093,2045.9,2045.8,0.001]
[1770427947351,3.10262909,2045.9,2045.6,0.001]
[1770427947528,1.05289483,2045.8,2045.6,0.001]
[1770427947724,1.05289483,2045.7,2045.6,0.001]
[1770427949231,2.2749704,2045.7,2045.6,0.001]
[1770427949431,3.07405901,2045.7,2045.6,0.001]
[1770427951664,0.96562048,2045.7,2045.6,3.99455906]
[1770427951832,1.22175529,2046.3,2045.7,3.99355906]
[1770427952153,0.7183347,2046.3,2045.7,3.99355906]
[1770427952354,0.7183347,2046.2,2045.8,5.21557489]
[1770427952528,1.22147847,2046.7,2045.8,5.21557489]
[1770427952723,0.7183347,2046.6,2045.9,1.01036611]
[1770427953660,0.7183347,2046.5,2045.9,1.01036611]
[1770427954457,1.22165754,2046.4,2045.9,1.01036611]
[1770427954646,0.7183347,2046.3,2045.9,1.01036611]
[1770427957174,4.88579529,2046.8,2046.0,3.81837608]
[1770427957477,0.7183347,2046.7,2046.1,4.42344436]
[1770427957770,0.7183347,2046.7,2046.1,0.60506828]
[1770427957984,0.7183347,2046.7,2046.1,0.60606828]
[1770427958139,0.002,2046.2,2046.1,0.60606828]
[1770427958553,0.002,2046.2,2046.1,0.001]
[1770427961753,0.002,2046.2,2045.6,0.001]
[1770427962266,0.7173347,2046.1,2045.6,0.001]
[1770427962466,1.22189638,2046.0,2045.6,0.001]
[1770427963075,1.93921439,2046.1,2045.6,0.001]
[1770427963279,0.7173347,2046.0,2045.6,0.001]
[1770427963787,1.05283994,2045.9,2045.6,0.001]
[1770427963952,1.05283994,2045.8,2045.6,0.001]
[1770427964289,0.002,2046.2,2045.7,3.81837608]
[1770427964471,0.7173347,2046.1,2045.7,3.81837608]
[1770427964678,0.7173347,2046.1,2045.9,3.81837608]
[1770427964987,0.002,2046.2,2045.9,4.81122781]
[1770427965180,0.7193347,2046.2,2045.9,4.81122781]
[1770427965685,1.2214523,2046.8,2046.0,3.81837608]
[1770427966090,4.8876752,2046.9,2046.0,3.81837608]
[1770427966091,0.002,2046.9,2046.0,3.81837608]
[1770427966582,0.002,2047.1,2046.5,3.81837608]
[1770427966810,0.002,2047.2,2046.8,3.81837608]
[1770427967310,0.002,2047.4,2046.9,3.81837608]
[1770427967475,1.222768,2047.9,2046.8,3.81837608]
[1770427967677,1.222768,2047.9,2047.0,3.81837608]
[1770427967883,1.22276494,2047.9,2047.0,3.81837608]
[1770427968190,1.22276494,2047.9,2047.1,4.20021369]
[1770427968402,1.22276494,2047.9,2046.8,3.81837608]
[1770427968704,5.37706977,2047.9,2046.9,1.22135912]
[1770427969006,1.22276494,2047.9,2046.9,5.0397352]
[1770427969587,1.22276494,2047.9,2046.9,3.81837608]
[1770427969787,5.37706977,2047.9,2046.6,9.20839213]
[1770427969980,5.1804963,2047.8,2046.7,2.14228637]
[1770427970308,5.1804963,2047.8,2046.8,1.2214047]
[1770427970601,1.22088196,2047.7,2046.8,1.2214047]
[1770427970802,1.22088196,2047.7,2046.7,2.1422794]
[1770427971001,1.22088196,2047.7,2046.7,0.92083921]
[1770427971302,1.12849061,2047.6,2046.7,1.22147773]
[1770427971911,1.13049061,2047.6,2046.7,1.22147773]
[1770427972407,1.13049061,2047.6,2046.8,3.81837608]
[1770427972780,1.22100122,2047.5,2046.9,1.22135912]
[1770427972982,2.35147364,2047.6,2046.9,1.22135912]
[1770427973202,2.35147364,2047.6,2046.9,2.21389778]
[1770427974190,0.002,2047.6,2046.9,6.03227386]
[1770427974711,0.002,2047.6,2047.1,5.03961588]
[1770427975514,0.002,2047.6,2047.1,1.2212398]
[1770427975701,0.002,2047.6,2047.0,1.22125817]
[1770427975901,0.002,2047.6,2046.5,3.81837608]
[1770427975902,4.15630483,2047.6,2046.5,3.81837608]
[1770427976122,4.15630483,2047.6,2046.5,4.20021369]
[1770427976276,4.15630483,2047.6,2046.3,3.81837608]
[1770427976617,1.04654406,2047.5,2046.8,1.22140864]
[1770427976820,2.2676411,2047.4,2046.8,1.22140864]
[1770427976984,1.22109704,2047.4,2046.8,1.22140864]
[1770427977177,0.002,2047.6,2046.9,3.81837608]
[1770427977410,1.22298279,2047.6,2047.0,0.50397847]
[1770427978203,0.002,2047.6,2047.0,4.32235455]
[1770427978405,1.22294995,2047.6,2047.0,4.32235455]
[1770427979316,0.002,2047.6,2047.1,3.81837608]
[1770427981617,0.002,2047.6,2047.2,5.03955622]
[1770427981910,0.002,2047.6,2047.3,0.99245133]
[1770427982811,0.002,2047.6,2047.4,3.81837608]
[1770427983514,0.002,2047.6,2047.5,1.22100122]
[1770427983696,0.002,2047.8,2047.4,5.03940172]
[1770427984037,0.002,2047.8,2047.3,0.99245133]
[1770427984325,0.002,2047.8,2047.0,0.50397847]
[1770427984479,0.002,2047.8,2047.0,1.7262742]
[1770427984480,0.41803048,2047.8,2047.0,1.7262742]
[1770427984810,0.002,2047.6,2047.0,1.7262742]
[1770427985196,0.002,2047.6,2047.3,5.03945457]
[1770427985395,0.002,2047.6,2047.4,5.03943453]
[1770427986092,0.002,2047.8,2047.5,3.94574378]
[1770427986296,0.002,2047.8,2047.6,0.51668022]
[1770427990334,0.002,2047.8,2046.9,9.046698]
[1770427990625,0.002,2047.8,2047.1,1.2212372]
[1770427990800,0.002,2047.8,2047.0,5.88761723]
[1770427991003,1.0471125,2047.7,2047.0,5.88761723]
[1770427991234,0.002,2047.8,2047.0,5.88761723]
[1770427991403,1.04740543,2047.7,2047.0,0.001]
[1770427991605,4.1987209,2047.8,2047.0,0.001]
[1770427991905,1.22100122,2047.5,2047.0,0.001]
[1770427992121,0.002,2047.8,2047.0,4.16237941]
[1770427992301,2.26918608,2047.7,2047.1,4.57761735]
[1770427992503,1.22282426,2047.8,2047.1,4.57761735]
[1770427992702,0.002,2047.8,2047.1,4.57761735]
[1770427993828,0.002,2047.8,2047.3,4.16137941]
[1770427994210,0.002,2047.8,2047.1,1.63743953]
[1770427994532,0.002,2047.8,2047.2,1.06849572]
[1770427994830,1.05045758,2047.7,2047.2,1.06849572]
[1770427995035,0.002,2047.8,2047.2,1.06849572]
[1770427995332,1.0504747,2047.7,2047.2,1.06849572]
[1770427995628,1.0504747,2047.6,2047.2,1.06849572]
[1770427995806,1.22092182,2047.7,2047.2,1.06849572]
[1770427996006,1.05194164,2047.6,2047.2,1.06849572]
[1770427996217,1.0525525,2047.5,2047.2,1.06849572]
[1770427996430,1.22092182,2047.7,2047.2,1.06849572]
[1770427996623,1.05255239,2047.6,2047.3,0.001]
[1770427996803,1.05255239,2047.5,2047.3,0.27169353]
[1770427997007,0.002,2047.6,2047.3,0.27169353]
[1770427997405,0.002,2047.6,2047.3,4.43307294]
[1770427997607,0.002,2047.6,2047.3,0.001]
[1770427997832,1.22106085,2047.4,2047.0,3.851]
[1770427998063,1.05261547,2047.3,2047.0,0.001]
[1770427998213,1.05261547,2047.2,2046.4,4.16137941]
[1770427998413,1.05261547,2047.1,2046.4,5.38303371]
[1770427998619,1.05261547,2047.0,2046.4,5.38303371]
[1770427998830,1.05261547,2046.9,2046.4,5.38303371]
[1770427999348,1.05261547,2046.9,2046.6,4.16137941]
[1770427999506,1.22106085,2047.4,2046.8,1.2224188]
[1770427999712,1.05245033,2047.3,2046.8,4.16237941]
[1770428000034,1.05245033,2047.2,2046.8,4.16237941]
[1770428000223,1.05245033,2047.1,2046.8,4.16237941]
[1770428000407,1.05245033,2047.0,2046.8,5.38379683]
[1770428000606,1.83182795,2047.4,2046.8,5.38379683]
[1770428000809,1.05237189,2047.3,2046.8,6.41076577]
[1770428001008,1.05237189,2047.2,2046.8,6.41076577]
[1770428001343,1.05237189,2047.1,2046.8,6.41076577]
[1770428001541,1.05237189,2047.0,2046.8,6.41076577]
[1770428001839,0.002,2047.6,2046.9,4.16137941]
[1770428002011,1.05226055,2047.5,2047.0,0.64107658]
[1770428002333,1.05226055,2047.4,2047.0,0.64107658]
[1770428002530,1.05226055,2047.3,2047.0,0.64107658]
[1770428002708,0.002,2047.6,2047.0,0.64107658]
[1770428003059,1.05224083,2047.5,2047.0,0.64107658]
[1770428003204,1.05224083,2047.4,2047.1,0.4802456]
[1770428003543,1.05224083,2047.3,2047.1,0.4802456]
[1770428003731,0.002,2047.6,2047.1,0.4802456]
[1770428003926,0.002,2047.6,2046.8,2.24938636]
[1770428003927,1.05226195,2047.5,2046.8,5.18934835]
[1770428004234,1.05226195,2047.4,2047.0,1.22128763]
[1770428004426,1.05226195,2047.3,2047.0,1.22128763]
[1770428004622,0.002,2047.6,2047.0,5.38266704]
[1770428004826,0.002,2047.9,2047.5,4.16137941]
[1770428005025,0.002,2047.9,2047.6,0.41613794]
[1770428006454,0.002,2047.9,2047.4,1.22105794]
[1770428007019,0.002,2047.9,2047.4,4.16137941]
[1770428007222,0.002,2047.9,2047.5,1.22097178]
[1770428010011,0.002,2047.9,2047.4,5.38240548]
[1770428010847,0.002,2047.9,2047.4,1.22102607]
[1770428011015,0.002,2047.9,2047.4,1.41167895]
[1770428011912,4.1987209,2047.9,2047.1,1.22123423]
[1770428012115,0.002,2047.9,2047.2,1.22117794]
[1770428012439,0.002,2047.9,2047.1,1.22121324]
[1770428012624,0.002,2047.9,2047.0,9.2336562]
[1770428012824,0.002,2047.9,2047.2,4.16137941]
[1770428013026,0.002,2047.9,2047.2,1.22113595]
[1770428014523,0.002,2047.9,2047.3,4.16137941]
[1770428014929,0.002,2047.9,2047.3,5.38247909]
[1770428015821,0.002,2047.9,2047.3,5.3824957]
[1770428016025,0.5,2047.7,2047.4,1.02671917]
[1770428016316,0.5,2047.7,2047.1,1.41190798]
[1770428016645,0.5,2047.7,2047.2,1.22117105]
[1770428016855,5.25667657,2047.6,2047.0,0.001]
[1770428017168,1.22106085,2047.4,2047.0,0.001]
[1770428018354,4.88413528,2047.5,2047.0,0.001]
[1770428018355,1.22104425,2047.5,2047.0,0.001]
[1770428018544,1.05178693,2047.4,2047.0,0.62139545]
[1770428018748,1.22082234,2047.8,2047.0,0.62139545]
[1770428019056,1.05181933,2047.7,2047.0,0.62139545]
[1770428019254,1.22100122,2047.5,2047.0,1.84268788]
[1770428019465,1.05181933,2047.4,2047.0,0.62139545]
[1770428019642,1.05181933,2047.4,2047.0,1.84269361]
[1770428019965,1.22098664,2047.6,2047.0,0.62139545]
[1770428020270,1.05184308,2047.5,2047.0,0.62139545]
[1770428020579,1.05184308,2047.4,2047.0,1.84269407]
[1770428020772,1.22092385,2047.7,2047.1,4.53323622]
[1770428020940,1.05183358,2047.6,2047.1,4.53323622]
[1770428021148,1.05183358,2047.5,2047.1,4.53323622]
[1770428021344,4.88337065,2047.8,2047.2,5.17578484]
[1770428021345,1.22085969,2047.8,2047.2,5.17578484]
[1770428021549,1.05377264,2047.7,2047.2,6.30193916]
[1770428021752,1.05177264,2047.6,2047.2,6.30193916]
[1770428021958,0.002,2047.7,2047.2,0.001]
[1770428021959,1.05177264,2047.5,2047.2,0.001]
[1770428022144,0.002,2047.7,2047.2,0.001]
[1770428022145,1.05185638,2047.4,2047.2,0.001]
[1770428022661,0.002,2047.7,2047.2,0.001]
[1770428022962,1.0518483,2047.6,2047.2,0.001]
[1770428023159,0.002,2047.7,2047.3,3.9536047]
[1770428023340,0.002,2047.7,2047.4,0.39546047]
[1770428023861,0.002,2047.7,2047.3,1.22110579]
[1770428024054,0.002,2047.7,2047.2,5.17574998]
[1770428024659,0.002,2047.7,2047.2,5.17575731]
[1770428024957,0.002,2047.7,2047.3,1.22111596]
[1770428025266,0.002,2047.7,2047.2,3.9546047]
[1770428025267,0.002,2047.7,2047.2,5.17574308]
[1770428025457,0.002,2047.7,2047.3,1.00605766]
[1770428025760,0.002,2047.7,2047.3,2.22717052]
[1770428026877,0.002,2047.7,2047.4,3.9536047]
[1770428027178,0.002,2047.7,2047.3,2.22717052]
[1770428027380,0.002,2047.7,2047.3,2.22715558]
[1770428027587,4.20693043,2047.7,2047.0,0.001]
[1770428028258,0.5,2047.5,2047.0,0.001]
[1770428028459,4.70493043,2047.5,2047.0,0.001]
[1770428029362,1.22106085,2047.4,2047.0,0.001]
[1770428030186,1.22106085,2047.4,2046.8,3.9546047]
[1770428030363,4.88388317,2047.6,2046.9,0.39546047]
[1770428030776,0.002,2047.7,2046.9,4.34906517]
[1770428031190,1.22270875,2048.0,2047.3,3.9536047]
[1770428031494,0.002,2048.0,2047.4,5.17466555]
[1770428031793,0.002,2048.0,2047.5,3.9536047]
[1770428032099,0.002,2048.0,2047.6,4.47107126]
[1770428033202,0.002,2048.2,2047.6,4.47107126]
[1770428033491,0.002,2048.3,2047.8,5.17442704]
[1770428034462,0.002,2048.7,2047.9,15.2774017]
[1770428034662,0.002,2048.7,2048.0,3.9536047]
[1770428034958,0.002,2048.7,2048.2,3.9536047]
[1770428035570,0.002,2048.7,2048.3,5.17412903]
[1770428036171,0.32538882,2049.0,2048.4,3.9536047]
[1770428036479,4.87853422,2049.8,2048.4,3.9536047]
[1770428036480,4.87910022,2049.6,2048.4,3.9536047]
[1770428036682,1.04901396,2049.5,2048.4,3.9536047]
[1770428036990,1.0489668,2049.4,2048.5,0.5174129]
[1770428037292,5.25389723,2049.3,2048.5,0.5174129]
[1770428037498,0.003,2049.7,2048.8,3.9536047]
[1770428037668,1.0479773,2049.6,2048.8,3.9536047]
[1770428037862,1.22269645,2049.7,2048.8,3.9536047]
[1770428038062,1.04796173,2049.6,2048.9,4.47099377]
[1770428038265,0.003,2049.7,2048.9,4.47099377]
[1770428038462,0.003,2049.7,2049.0,3.654798]
[1770428038765,0.003,2049.7,2049.1,3.9536047]
[1770428039563,0.003,2049.7,2049.0,1.22006954]
[1770428039768,0.003,2049.7,2048.9,9.35164904]
[1770428039969,0.003,2049.7,2049.1,1.22004471]
[1770428040166,0.003,2049.7,2049.1,5.17364941]
[1770428040369,0.003,2049.7,2049.1,1.22004471]
[1770428040569,0.003,2049.7,2049.2,3.9536047]
[1770428041298,0.003,2049.7,2049.1,1.22004471]
[1770428041475,0.003,2049.7,2049.2,0.70356278]
[1770428041674,0.003,2049.7,2049.0,0.9351649]
[1770428041675,4.20793043,2049.7,2049.0,0.9351649]
[1770428041884,0.003,2049.7,2049.0,1.2200564]
[1770428042593,4.20793043,2049.7,2048.6,3.9536047]
[1770428042800,4.70493043,2049.5,2048.6,1.22034478]
[1770428043001,4.70493043,2049.5,2048.5,1.22036379]
[1770428043688,1.21986923,2049.4,2048.4,4.88183894]
[1770428043886,2.30029689,2049.4,2048.5,1.00559084]
[1770428044082,1.08042766,2049.4,2048.5,4.95919554]
[1770428044273,1.22273265,2049.7,2048.8,3.9536047]
[1770428044678,0.003,2049.7,2048.8,3.9536047]
[1770428045498,1.22270361,2049.7,2048.5,5.00070654]
[1770428045809,0.003,2049.7,2048.7,1.22028603]
[1770428046510,4.2024242,2049.7,2048.5,2.2259629]
[1770428046805,4.1994242,2049.5,2048.2,1.22054848]
[1770428047008,4.1994242,2049.5,2048.3,1.22052141]
[1770428047307,0.90811869,2049.6,2048.6,1.2203254]
[1770428047505,0.002,2049.5,2048.6,1.2203254]
[1770428047709,1.2218097,2049.5,2048.6,5.28927003]
[1770428047904,1.92322642,2049.5,2048.7,1.01706991]
[1770428048690,5.85007671,2049.5,2048.3,4.07449132]
[1770428048892,0.002,2049.5,2048.7,4.07449132]
[1770428049786,0.002,2049.5,2048.9,4.07449132]
[1770428050686,0.005,2049.7,2048.9,4.07449132]
[1770428051085,0.005,2049.7,2049.1,4.07449132]
[1770428051407,1.55967027,2050.3,2049.2,4.07449132]
[1770428051582,1.55967027,2050.3,2049.1,0.04391958]
[1770428051583,1.55967027,2050.3,2049.3,0.41184109]
[1770428051784,1.55967027,2050.3,2049.4,1.21986923]
[1770428052714,0.34029663,2050.3,2049.5,4.07449132]
[1770428053592,1.2212138,2050.6,2049.5,4.07449132]
[1770428053908,0.002,2050.6,2049.7,4.07449132]
[1770428054213,0.002,2050.6,2049.8,0.52942415]
[1770428054413,0.002,2050.6,2049.6,1.21975019]
[1770428055084,0.002,2050.6,2049.6,5.29424151]
[1770428055300,0.002,2050.6,2049.7,4.07449132]
[1770428056018,0.002,2050.6,2049.8,1.21963118]
[1770428058421,0.002,2050.6,2049.8,5.2941225]
[1770428058612,0.002,2050.6,2049.9,1.01728823]
[1770428058998,3.92885029,2050.6,2049.3,0.41184109]
[1770428059324,3.92685029,2050.4,2049.2,1.21994171]
[1770428059720,3.92685029,2050.4,2049.2,1.2199575]
[1770428060096,3.92885029,2050.4,2049.4,1.21986389]
[1770428060401,1.21939322,2050.2,2049.2,1.21998828]
[1770428061726,1.21939322,2050.2,2049.3,4.07449132]
[1770428061921,1.22127676,2050.4,2049.3,4.07449132]
[1770428062422,0.002,2050.4,2049.6,4.07449132]
[1770428062723,0.002,2050.4,2049.7,4.60392142]
[1770428065033,0.002,2050.4,2049.9,4.07449132]